fUSD/lending_fUSD_20250616
["ID","MTS","AMOUNT","RATE_DAILY","PERIOD"]
[366144947,1750085468469,-2048.72,0.00016767,2]
[366144948,1750085468479,-16568.9,0.00016767,2]
[366144949,1750085468489,-490.0,0.00016767,2]
[366144950,1750085468500,-671.6,0.00016767,2]
[366144951,1750085468511,-490.0,0.00016767,2]
[366144952,1750085468520,-990.72,0.00016767,2]
[366144953,1750085468532,-1012.76,0.00016767,2]
[366144954,1750085468542,-490.0,0.00016767,2]
[366144955,1750085468553,-892.07,0.00016767,2]
[366144956,1750085468567,-798.34,0.00016767,2]
[366144957,1750085468580,-1576.84,0.00016767,2]
[366144958,1750085468590,-490.0,0.00016767,2]
[366144959,1750085468599,-534.96,0.00016767,2]
[366144960,1750085468609,-810.56,0.00016767,2]
[366144961,1750085468619,-614.55,0.00016767,2]
[366144962,1750085468629,-2263.25,0.00016767,2]
[366144963,1750085468638,-931.84,0.00016767,2]
[366144964,1750085468650,-968.72,0.00016767,2]
[366144965,1750085468659,-536.29,0.00016767,2]
[366144966,1750085468669,-1577.24,0.00016767,2]
[366144967,1750085468681,-733.4,0.00016767,2]
[366144968,1750085468691,-955.98,0.00016767,2]
[366144969,1750085468700,-490.0,0.00016767,2]
[366144970,1750085468709,-817.73,0.00016767,2]
[366144971,1750085468719,-785.68,0.00016767,2]
[366144972,1750085468728,-2376.14,0.00016767,2]
[366144973,1750085468739,-1581.21,0.00016767,2]
[366144974,1750085468748,-3333.54,0.00016767,2]
[366144975,1750085468758,-925.89,0.00016767,2]
[366144976,1750085468767,-490.0,0.00016767,2]
[366144977,1750085468777,-490.0,0.00016767,2]
[366144978,1750085468786,-490.0,0.00016767,2]
[366144979,1750085468798,-602.82,0.00016767,2]
[366144980,1750085468816,-778.82,0.00016767,2]
[366144981,1750085468827,-719.15,0.00016767,2]
[366144982,1750085468836,-972.31,0.00016767,2]
[366144983,1750085468845,-490.0,0.00016767,2]
[366144984,1750085468855,-667.25,0.00016767,2]
[366144985,1750085468865,-1050.65,0.00016767,2]
[366144986,1750085468874,-689.33,0.00016767,2]
[366144987,1750085468884,-16618.58,0.00016767,2]
[366144988,1750085468893,-16045.49,0.00016767,2]
[366144989,1750085468904,-796.52,0.00016767,2]
[366144990,1750085468913,-1454.53,0.00016767,2]
[366144991,1750085468923,-885.28,0.00016767,2]
[366144992,1750085468933,-689.29,0.00016767,2]
[366144993,1750085468942,-531.5,0.00016767,2]
[366144994,1750085468952,-1036.89,0.00016767,2]
[366144995,1750085468962,-151.0,0.00016767,2]
[366144996,1750085468972,-151.0,0.00016767,2]
[366144997,1750085468982,-151.0,0.00016767,2]
[366144998,1750085468991,-1146.32,0.00016767,2]
[366144999,1750085469001,-6956.13,0.00016767,2]
[366145000,1750085469010,-2878.73,0.00016767,2]
[366145001,1750085469020,-1268.5,0.00016767,2]
[366145002,1750085469030,-200.0,0.00016768,2]
[366145003,1750085469040,-8293.49289969,0.00016769,2]
[366145004,1750085469050,-2246.13364994,0.00016769,2]
[366145005,1750085469061,-500.0,0.00016773,2]
[366145006,1750085469071,-500.0,0.00016773,2]
[366145007,1750085469081,-500.0,0.00016773,2]
[366145008,1750085469091,-500.0,0.00016773,2]
[366145009,1750085469100,-160.06549206,0.00016773,2]
[366145010,1750085469110,-167.28540589,0.00016773,2]
[366145011,1750085469119,-500.0,0.00016773,2]
[366145012,1750085469129,-160.04345336,0.00016773,2]
[366145013,1750085469138,-500.0,0.00016773,2]
[366145014,1750085469148,-500.0,0.00016773,2]
[366145015,1750085469157,-500.0,0.00016773,2]
[366145016,1750085469167,-500.0,0.00016773,2]
[366145017,1750085469176,-500.91731703,0.00016773,2]
[366145018,1750085469186,-503.58100641,0.00016773,2]
[366145019,1750085469195,-205.42608653,0.00016773,2]
[366145020,1750085469204,-500.0,0.00016773,2]
[366145021,1750085469214,-500.0,0.00016773,2]
[366145022,1750085469223,-162.10942601,0.00016773,2]
[366145023,1750085469233,-500.0,0.00016773,2]
[366145024,1750085469243,-502.32082111,0.00016773,2]
[366145025,1750085469253,-200.366126,0.00016773,2]
[366145026,1750085469263,-200.366126,0.00016773,2]
[366145027,1750085469273,-151.0,0.00016773,2]
[366145028,1750085469282,-151.0,0.00016773,2]
[366145029,1750085469292,-282.938286,0.00016773,2]
[366145030,1750085469302,-282.938286,0.00016773,2]
[366145031,1750085469315,-242.861632,0.00016773,2]
[366145032,1750085469326,-175.574596,0.00016773,2]
[366145033,1750085469336,-175.574596,0.00016773,2]
[366145034,1750085469346,-151.0,0.00016773,2]
[366145035,1750085469356,-209.598752,0.00016773,2]
[366145036,1750085469366,-209.598752,0.00016773,2]
[366145037,1750085469376,-151.0,0.00016773,2]
[366145038,1750085469385,-4246.28587664,0.00016774,2]
[366145039,1750085469395,-570.17763684,0.00016777,2]
[366145040,1750085469404,-200.0,0.00016781,2]
[366145041,1750085469414,-157.60514064,0.00016787,2]
[366145042,1750085469423,-570.17763684,0.00016788,2]
[366145043,1750085469433,-200.0,0.00016792,2]
[366145044,1750085469442,-300.0,0.00016794,2]
[366145045,1750085469452,-329.83272598,0.00016798,2]
[366145046,1750085469461,-14175.69264881,0.000168,2]
[366145047,1750085469471,-155.0,0.000168,10]
[366145048,1750085469481,-153.081709,0.000168,2]
[366145049,1750085469491,-8293.49289969,0.00016803,2]
[366145050,1750085469500,-168.0,0.00016804,2]
[366145051,1750085469510,-570.17763684,0.00016804,2]
[366145052,1750085469521,-245.383145,0.00016806,2]
[366145053,1750085469530,-245.383145,0.00016806,2]
[366145054,1750085469540,-518.792465,0.00016806,2]
[366145055,1750085469549,-518.792465,0.00016806,2]
[366145056,1750085469559,-151.0,0.00016806,2]
[366145057,1750085469573,-151.0,0.00016806,2]
[366145058,1750085469582,-151.0,0.00016806,2]
[366145059,1750085469592,-151.0,0.00016806,2]
[366145060,1750085469602,-394.291405,0.00016806,2]
[366145061,1750085469612,-394.291405,0.00016806,2]
[366145062,1750085469623,-219.699347,0.00016806,2]
[366145063,1750085469633,-219.699347,0.00016806,2]
[366145064,1750085469642,-814.142819,0.00016806,2]
[366145065,1750085469653,-814.142819,0.00016806,2]
[366145066,1750085469664,-14175.69264881,0.00016808,2]
[366145067,1750085469674,-200.0,0.0001681,2]
[366145068,1750085469683,-200.0,0.00016812,2]
[366145069,1750085469694,-8293.49289969,0.00016814,2]
[366145070,1750085469704,-8293.49289969,0.00016818,2]
[366145071,1750085469714,-200.0,0.00016819,2]
[366145072,1750085469724,-14175.69264881,0.00016831,2]
[366145073,1750085469734,-335.22643381,0.00016832,2]
[366145074,1750085469744,-570.17763684,0.00016833,2]
[366145075,1750085469754,-2246.13364994,0.00016834,2]
[366145076,1750085469764,-165.175623,0.00016836,2]
[366145077,1750085469775,-165.175623,0.00016836,2]
[366145078,1750085469785,-4246.28587664,0.00016837,2]
[366145079,1750085469794,-8293.49289969,0.0001684,2]
[366145080,1750085469804,-570.17763684,0.0001684,2]
[366145081,1750085469815,-8293.49289969,0.00016844,2]
[366145082,1750085469826,-570.17763684,0.00016844,2]
[366145083,1750085469836,-200.0,0.00016846,2]
[366145084,1750085469846,-14175.69264881,0.00016849,2]
[366145085,1750085469855,-14175.69264881,0.00016862,2]
[366145086,1750085469865,-200.0,0.00016863,2]
[366145087,1750085469875,-200.0,0.00016869,2]
[366145088,1750085469885,-8293.49289969,0.00016869,2]
[366145089,1750085469897,-14175.69264881,0.00016869,2]
[366145090,1750085469907,-200.0,0.0001687,2]
[366145091,1750085469921,-570.17763684,0.00016872,2]
[366145092,1750085469931,-230.081965,0.00016873,2]
[366145093,1750085469941,-230.081965,0.00016873,2]
[366145094,1750085469950,-4740.0,0.0001688,2]
[366145095,1750085469961,-14175.69264881,0.00016884,2]
[366145096,1750085469971,-570.17763684,0.00016885,2]
[366145097,1750085469981,-200.0,0.00016888,2]
[366145098,1750085469991,-151.0,0.00016888,2]
[366145099,1750085470000,-151.0,0.00016888,2]
[366145100,1750085470010,-722.385856,0.00016888,2]
[366145101,1750085470023,-722.385856,0.00016888,2]
[366145102,1750085470033,-2825.6065883,0.00016888,2]
[366145103,1750085470042,-479.77706222,0.00016888,2]
[366145104,1750085470052,-200.0,0.0001689,2]
[366145105,1750085470064,-2825.6065883,0.00016894,2]
[366145106,1750085470074,-479.77706222,0.00016894,2]
[366145107,1750085470084,-200.0,0.00016895,2]
[366145108,1750085470094,-14175.69264881,0.00016898,2]
[366145109,1750085470103,-151.0,0.00016899,2]
[366145110,1750085470113,-291.48554,0.00016899,2]
[366145111,1750085470123,-151.0,0.00016899,2]
[366145112,1750085470133,-326.772565,0.00016899,2]
[366145113,1750085470143,-326.772565,0.00016899,2]
[366145114,1750085470153,-151.0,0.00016899,2]
[366145115,1750085470162,-151.0,0.00016899,2]
[366145116,1750085470172,-151.0,0.00016899,2]
[366145117,1750085470181,-151.0,0.00016899,2]
[366145118,1750085470191,-151.0,0.00016899,2]
[366145119,1750085470201,-151.0,0.00016899,2]
[366145120,1750085470211,-151.0,0.00016899,2]
[366145121,1750085470221,-151.0,0.00016899,2]
[366145122,1750085470232,-151.0,0.00016899,2]
[366145123,1750085470242,-196.339216,0.00016899,2]
[366145124,1750085470252,-151.0,0.00016899,2]
[366145125,1750085470261,-151.0,0.00016899,2]
[366145126,1750085470271,-151.0,0.00016899,2]
[366145127,1750085470281,-151.0,0.00016899,2]
[366145128,1750085470292,-424.499317,0.00016899,2]
[366145129,1750085470302,-424.499317,0.00016899,2]
[366145130,1750085470313,-595.515647,0.00016899,2]
[366145131,1750085470323,-595.515647,0.00016899,2]
[366145132,1750085470333,-595.515647,0.00016899,2]
[366145133,1750085470344,-595.515647,0.00016899,2]
[366145134,1750085470353,-167.00185,0.00016899,2]
[366145135,1750085470363,-200.366126,0.00016899,2]
[366145136,1750085470372,-200.366126,0.00016899,2]
[366145137,1750085470382,-151.0,0.00016899,2]
[366145138,1750085470392,-151.0,0.00016899,2]
[366145139,1750085470402,-151.0,0.00016899,2]
[366145140,1750085470412,-151.0,0.00016899,2]
[366145141,1750085470422,-151.0,0.00016899,2]
[366145142,1750085470431,-308.547349,0.00016899,2]
[366145143,1750085470441,-308.547349,0.00016899,2]
[366145144,1750085470450,-151.0,0.00016899,2]
[366145145,1750085470461,-393.636506,0.00016899,2]
[366145146,1750085470471,-393.636506,0.00016899,2]
[366145147,1750085470481,-1090.713649,0.00016899,2]
[366145148,1750085470491,-1090.713649,0.00016899,2]
[366145149,1750085470502,-204.446949,0.00016899,2]
[366145150,1750085470513,-204.446949,0.00016899,2]
[366145151,1750085470522,-310.37793,0.00016899,2]
[366145152,1750085470532,-310.37793,0.00016899,2]
[366145153,1750085470543,-226.046328,0.00016899,2]
[366145154,1750085470552,-226.046328,0.00016899,2]
[366145155,1750085470565,-512.381056,0.00016899,2]
[366145156,1750085470579,-512.381056,0.00016899,2]
[366145157,1750085470590,-1182.7,0.00016899,2]
[366145158,1750085470600,-2246.13364994,0.00016899,2]
[366145159,1750085470610,-5642.18705818,0.000169,2]
[366145160,1750085470621,-146515.44643931,0.000169,2]
[366145161,1750085470630,-211.0,0.000169,2]
[366145162,1750085470640,-209.5,0.000169,2]
[366145163,1750085470650,-2000.0,0.000169,2]
[366145164,1750085470660,-2000.0,0.000169,2]
[366145165,1750085470670,-2000.0,0.000169,2]
[366145166,1750085470680,-2000.0,0.000169,2]
[366145167,1750085470690,-2000.0,0.000169,2]
[366145168,1750085470700,-1000.0,0.000169,2]
[366145169,1750085470710,-1000.0,0.000169,2]
[366145170,1750085470720,-1000.0,0.000169,2]
[366145171,1750085470729,-1000.0,0.000169,2]
[366145172,1750085470738,-151.0,0.000169,2]
[366145173,1750085470748,-151.0,0.000169,2]
[366145174,1750085470758,-209.5,0.000169,2]
[366145175,1750085470769,-224.504685,0.000169,2]
[366145176,1750085470778,-224.504685,0.000169,2]
[366145177,1750085470788,-151.0,0.000169,2]
[366145178,1750085470798,-151.0,0.000169,2]
[366145179,1750085470807,-182.626834,0.000169,2]
[366145180,1750085470818,-182.626827,0.000169,2]
[366145181,1750085470828,-151.0,0.000169,2]
[366145182,1750085470838,-181.003671,0.000169,2]
[366145183,1750085470847,-151.0,0.000169,2]
[366145184,1750085470857,-558.970878,0.000169,2]
[366145185,1750085470866,-558.970874,0.000169,2]
[366145186,1750085470875,-151.0,0.000169,2]
[366145187,1750085470885,-518.792465,0.000169,2]
[366145188,1750085470895,-518.792465,0.000169,2]
[366145189,1750085470904,-151.0,0.000169,2]
[366145190,1750085470914,-326.772565,0.000169,2]
[366145191,1750085470923,-326.772565,0.000169,2]
[366145192,1750085470933,-151.0,0.000169,2]
[366145193,1750085470942,-151.0,0.000169,2]
[366145194,1750085470952,-200.080717,0.000169,2]
[366145195,1750085470961,-200.080717,0.000169,2]
[366145196,1750085470970,-200.080717,0.000169,2]
[366145197,1750085470980,-200.080717,0.000169,2]
[366145198,1750085470990,-151.0,0.000169,2]
[366145199,1750085471000,-151.0,0.000169,2]
[366145200,1750085471015,-151.0,0.000169,2]
[366145201,1750085471031,-151.0,0.000169,2]
[366145202,1750085471047,-151.0,0.000169,2]
[366145203,1750085471059,-151.0,0.000169,2]
[366145204,1750085471072,-151.0,0.000169,2]
[366145205,1750085471086,-151.0,0.000169,2]
[366145206,1750085471100,-151.0,0.000169,2]
[366145207,1750085471114,-151.0,0.000169,2]
[366145208,1750085471129,-151.0,0.000169,2]
[366145209,1750085471143,-200.366126,0.000169,2]
[366145210,1750085471158,-200.366126,0.000169,2]
[366145211,1750085471173,-151.0,0.000169,2]
[366145212,1750085471187,-199.199109,0.000169,2]
[366145213,1750085471200,-199.199109,0.000169,2]
[366145214,1750085471211,-151.0,0.000169,2]
[366145215,1750085471222,-151.0,0.000169,2]
[366145216,1750085471238,-224.227702,0.000169,2]
[366145217,1750085471251,-394.291405,0.000169,2]
[366145218,1750085471266,-394.291405,0.000169,2]
[366145219,1750085471281,-237.285454,0.000169,2]
[366145220,1750085471295,-163.571566,0.000169,2]
[366145221,1750085471310,-163.571566,0.000169,2]
[366145222,1750085471323,-255.096595,0.000169,2]
[366145223,1750085471337,-219.699347,0.000169,2]
[366145224,1750085471351,-219.699347,0.000169,2]
[366145225,1750085471367,-329.83272598,0.000169,2]
[366145226,1750085471381,-335.22643381,0.000169,2]
[366145227,1750085471394,-282.938286,0.000169,2]
[366145228,1750085471407,-282.938286,0.000169,2]
[366145229,1750085471421,-223.322793,0.000169,2]
[366145230,1750085471434,-223.322793,0.000169,2]
[366145231,1750085471447,-242.861632,0.000169,2]
[366145232,1750085471461,-814.142819,0.000169,2]
[366145233,1750085471476,-814.142819,0.000169,2]
[366145234,1750085471489,-309.380826,0.000169,2]
[366145235,1750085471502,-309.380826,0.000169,2]
[366145236,1750085471515,-151.0,0.000169,2]
[366145237,1750085471527,-183.702703,0.000169,2]
[366145238,1750085471538,-544.379265,0.000169,2]
[366145239,1750085471550,-544.379265,0.000169,2]
[366145240,1750085471566,-230.081965,0.000169,2]
[366145241,1750085471585,-230.081965,0.000169,2]
[366145242,1750085471596,-175.574596,0.000169,2]
[366145243,1750085471606,-175.574596,0.000169,2]
[366145244,1750085471618,-151.0,0.000169,2]
[366145245,1750085471630,-268.084298,0.000169,2]
[366145246,1750085471644,-157.970042,0.000169,2]
[366145247,1750085471660,-157.970042,0.000169,2]
[366145248,1750085471674,-722.385856,0.000169,2]
[366145249,1750085471686,-722.385856,0.000169,2]
[366145250,1750085471697,-347.2116,0.000169,2]
[366145251,1750085471708,-347.2116,0.000169,2]
[366145252,1750085471721,-4246.28587664,0.000169,2]
[366145253,1750085471734,-165.175623,0.000169,2]
[366145254,1750085471747,-165.175623,0.000169,2]
[366145255,1750085471760,-151.0,0.000169,2]
[366145256,1750085471771,-2585.74261602,0.000169,2]
[366145257,1750085471784,-209.598752,0.000169,2]
[366145258,1750085471796,-209.598752,0.000169,2]
[366145259,1750085471808,-151.0,0.000169,2]
[366145260,1750085471821,-2825.6065883,0.000169,2]
[366145261,1750085471833,-157.60514064,0.000169,2]
[366145262,1750085471845,-479.77706222,0.000169,2]
[366145263,1750085471857,-151.0,0.000169,2]
[366145264,1750085471868,-7378.1,0.00016922,2]
[366145265,1750085471881,-150.99,0.00016922,2]
[366145266,1750085471893,-310.55,0.00016922,2]
[366145267,1750085471911,-416.91,0.00016922,2]
[366145268,1750085471924,-151.0,0.00016922,2]
[366145269,1750085471935,-151.0,0.00016922,2]
[366145270,1750085471947,-253.472629,0.00016922,2]
[366145271,1750085471960,-308.547349,0.00016922,2]
[366145272,1750085471972,-308.547349,0.00016922,2]
[366145273,1750085471983,-151.0,0.00016922,2]
[366145274,1750085471995,-151.0,0.0001693,2]
[366145275,1750085472007,-151.0,0.0001693,2]
[366145276,1750085472019,-205.806729,0.0001693,2]
[366145277,1750085472031,-1182.7,0.0001693,2]
[366145278,1750085472043,-1182.7,0.0001693,2]
[366145279,1750085472055,-1182.7,0.0001693,2]
[366145280,1750085472068,-300.0,0.0001693,2]
[366145281,1750085472081,-300.0,0.0001693,2]
[366145282,1750085472093,-300.0,0.0001693,2]
[366145283,1750085472106,-150.0,0.00016931,2]
[366145284,1750085472118,-4794.49972876,0.00016931,2]
[366145285,1750085472130,-177.840972,0.00016931,2]
[366145286,1750085472143,-151.0,0.00016931,2]
[366145287,1750085472155,-151.0,0.00016931,2]
[366145288,1750085472169,-224.504685,0.00016931,2]
[366145289,1750085472180,-224.504687,0.00016931,2]
[366145290,1750085472193,-150.0,0.00016931,2]
[366145291,1750085472206,-151.0,0.00016931,2]
[366145292,1750085472220,-151.0,0.00016931,2]
[366145293,1750085472233,-60294.69899546,0.00016931,2]
[366145294,1750085472245,-151.0,0.00016931,2]
[366145295,1750085472257,-151.0,0.00016931,2]
[366145296,1750085472269,-151.0,0.00016931,2]
[366145297,1750085472281,-151.0,0.00016931,2]
[366145298,1750085472293,-245.383145,0.00016931,2]
[366145299,1750085472305,-245.383145,0.00016931,2]
[366145300,1750085472317,-245.383145,0.00016931,2]
[366145301,1750085472329,-245.383145,0.00016931,2]
[366145302,1750085472341,-245.383145,0.00016931,2]
[366145303,1750085472353,-245.383145,0.00016931,2]
[366145304,1750085472365,-151.0,0.00016931,2]
[366145305,1750085472377,-158.501302,0.00016931,2]
[366145306,1750085472390,-518.792465,0.00016931,2]
[366145307,1750085472402,-518.792465,0.00016931,2]
[366145308,1750085472414,-518.792465,0.00016931,2]
[366145309,1750085472426,-518.792465,0.00016931,2]
[366145310,1750085472439,-151.0,0.00016931,2]
[366145311,1750085472451,-151.0,0.00016931,2]
[366145312,1750085472462,-155.857432,0.00016931,2]
[366145313,1750085472474,-326.772565,0.00016931,2]
[366145314,1750085472485,-326.772565,0.00016931,2]
[366145315,1750085472497,-326.772565,0.00016931,2]
[366145316,1750085472510,-326.772565,0.00016931,2]
[366145317,1750085472522,-151.0,0.00016931,2]
[366145318,1750085472534,-151.0,0.00016931,2]
[366145319,1750085472546,-151.0,0.00016931,2]
[366145320,1750085472557,-151.0,0.00016931,2]
[366145321,1750085472573,-151.0,0.00016931,2]
[366145322,1750085472587,-151.0,0.00016931,2]
[366145323,1750085472604,-151.0,0.00016931,2]
[366145324,1750085472616,-795.198936,0.00016931,2]
[366145325,1750085472627,-151.0,0.00016931,2]
[366145326,1750085472639,-151.0,0.00016931,2]
[366145327,1750085472651,-705.30113,0.00016931,2]
[366145328,1750085472663,-151.0,0.00016931,2]
[366145329,1750085472675,-151.0,0.00016931,2]
[366145330,1750085472687,-200.080717,0.00016931,2]
[366145331,1750085472699,-200.080717,0.00016931,2]
[366145332,1750085472711,-200.080717,0.00016931,2]
[366145333,1750085472723,-200.080717,0.00016931,2]
[366145334,1750085472735,-217.515172,0.00016931,2]
[366145335,1750085472746,-192.028271,0.00016931,2]
[366145336,1750085472757,-424.499317,0.00016931,2]
[366145337,1750085472769,-424.499317,0.00016931,2]
[366145338,1750085472780,-151.0,0.00016931,2]
[366145339,1750085472791,-151.0,0.00016931,2]
[366145340,1750085472802,-151.0,0.00016931,2]
[366145341,1750085472813,-151.0,0.00016931,2]
[366145342,1750085472825,-151.0,0.00016931,2]
[366145343,1750085472837,-151.0,0.00016931,2]
[366145344,1750085472848,-151.0,0.00016931,2]
[366145345,1750085472860,-151.0,0.00016931,2]
[366145346,1750085472872,-595.515647,0.00016931,2]
[366145347,1750085472883,-595.515647,0.00016931,2]
[366145348,1750085472895,-595.515647,0.00016931,2]
[366145349,1750085472907,-595.515647,0.00016931,2]
[366145350,1750085472918,-152.401802,0.00016931,2]
[366145351,1750085472932,-151.0,0.00016931,2]
[366145352,1750085472944,-151.0,0.00016931,2]
[366145353,1750085472955,-163.117731,0.00016931,2]
[366145354,1750085472966,-151.0,0.00016931,2]
[366145355,1750085472978,-151.0,0.00016931,2]
[366145356,1750085472989,-151.0,0.00016931,2]
[366145357,1750085473001,-227.935709,0.00016931,2]
[366145358,1750085473013,-151.0,0.00016931,2]
[366145359,1750085473025,-151.0,0.00016931,2]
[366145360,1750085473037,-200.366126,0.00016931,2]
[366145361,1750085473048,-200.366126,0.00016931,2]
[366145362,1750085473060,-200.366126,0.00016931,2]
[366145363,1750085473073,-200.366126,0.00016931,2]
[366145364,1750085473085,-151.0,0.00016931,2]
[366145365,1750085473096,-151.0,0.00016931,2]
[366145366,1750085473108,-199.199109,0.00016931,2]
[366145367,1750085473120,-199.199109,0.00016931,2]
[366145368,1750085473132,-199.199109,0.00016931,2]
[366145369,1750085473144,-199.199109,0.00016931,2]
[366145370,1750085473156,-151.0,0.00016931,2]
[366145371,1750085473168,-151.0,0.00016931,2]
[366145372,1750085473180,-151.0,0.00016931,2]
[366145373,1750085473192,-151.0,0.00016931,2]
[366145374,1750085473205,-394.291405,0.00016931,2]
[366145375,1750085473216,-394.291405,0.00016931,2]
[366145376,1750085473227,-490.0,0.00016931,2]
[366145377,1750085473240,-394.291405,0.00016931,2]
[366145378,1750085473252,-394.291405,0.00016931,2]
[366145379,1750085473264,-490.0,0.00016931,2]
[366145380,1750085473275,-151.0,0.00016931,2]
[366145381,1750085473287,-151.0,0.00016931,2]
[366145382,1750085473299,-163.571566,0.00016931,2]
[366145383,1750085473310,-163.571566,0.00016931,2]
[366145384,1750085473322,-163.571566,0.00016931,2]
[366145385,1750085473334,-163.571566,0.00016931,2]
[366145386,1750085473345,-490.0,0.00016931,2]
[366145387,1750085473357,-490.0,0.00016931,2]
[366145388,1750085473369,-490.0,0.00016931,2]
[366145389,1750085473381,-490.0,0.00016931,2]
[366145390,1750085473395,-490.0,0.00016931,2]
[366145391,1750085473406,-490.0,0.00016931,2]
[366145392,1750085473419,-490.0,0.00016931,2]
[366145393,1750085473431,-490.0,0.00016931,2]
[366145394,1750085473443,-490.0,0.00016931,2]
[366145395,1750085473455,-490.0,0.00016931,2]
[366145396,1750085473467,-490.0,0.00016931,2]
[366145397,1750085473479,-490.0,0.00016931,2]
[366145398,1750085473492,-490.0,0.00016931,2]
[366145399,1750085473504,-490.0,0.00016931,2]
[366145400,1750085473517,-490.0,0.00016931,2]
[366145401,1750085473528,-490.0,0.00016931,2]
[366145402,1750085473541,-219.699347,0.00016931,2]
[366145403,1750085473553,-219.699347,0.00016931,2]
[366145404,1750085473565,-219.699347,0.00016931,2]
[366145405,1750085473579,-219.699347,0.00016931,2]
[366145406,1750085473592,-490.0,0.00016931,2]
[366145407,1750085473604,-490.0,0.00016931,2]
[366145408,1750085473617,-490.0,0.00016931,2]
[366145409,1750085473629,-490.0,0.00016931,2]
[366145410,1750085473641,-490.0,0.00016931,2]
[366145411,1750085473655,-681.81,0.00016931,2]
[366145412,1750085473667,-490.0,0.00016931,2]
[366145413,1750085473679,-490.0,0.00016931,2]
[366145414,1750085473691,-490.0,0.00016931,2]
[366145415,1750085473703,-490.0,0.00016931,2]
[366145416,1750085473716,-490.0,0.00016931,2]
[366145417,1750085473728,-151.0,0.00016931,2]
[366145418,1750085473740,-490.0,0.00016931,2]
[366145419,1750085473753,-490.0,0.00016931,2]
[366145420,1750085473765,-490.0,0.00016931,2]
[366145421,1750085473776,-490.0,0.00016931,2]
[366145422,1750085473788,-282.938286,0.00016931,2]
[366145423,1750085473800,-282.938286,0.00016931,2]
[366145424,1750085473813,-282.938286,0.00016931,2]
[366145425,1750085473824,-282.938276,0.00016931,2]
[366145426,1750085473836,-588.0,0.00016931,2]
[366145427,1750085473848,-885.29,0.00016931,2]
[366145428,1750085473861,-490.0,0.00016931,2]
[366145429,1750085473872,-490.0,0.00016931,2]
[366145430,1750085473885,-597.41,0.00016931,2]
[366145431,1750085473897,-490.0,0.00016931,2]
[366145432,1750085473908,-223.322793,0.00016931,2]
[366145433,1750085473921,-554.43,0.00016931,2]
[366145434,1750085473933,-223.322793,0.00016931,2]
[366145435,1750085473944,-223.322793,0.00016931,2]
[366145436,1750085473956,-490.0,0.00016931,2]
[366145437,1750085473967,-223.32279,0.00016931,2]
[366145438,1750085473979,-490.0,0.00016931,2]
[366145439,1750085473991,-490.0,0.00016931,2]
[366145440,1750085474003,-490.0,0.00016931,2]
[366145441,1750085474015,-490.0,0.00016931,2]
[366145442,1750085474028,-584.62,0.00016931,2]
[366145443,1750085474040,-490.0,0.00016931,2]
[366145444,1750085474052,-852.27,0.00016931,2]
[366145445,1750085474064,-490.0,0.00016931,2]
[366145446,1750085474076,-242.861632,0.00016931,2]